bitfinex/quotes_BTCUSD_20241027
["timestamp","ask_amount","ask_price","bid_price","bid_amount"]
[1730044632835,0.54985037,67768.0,67767.0,0.001646]
[1730044633046,0.41712306,67768.0,67767.0,0.001646]
[1730044633472,0.65785951,67768.0,67767.0,0.001646]
[1730044633688,0.52312815,67768.0,67767.0,0.001646]
[1730044633889,0.65585906,67768.0,67767.0,0.001646]
[1730044634120,0.52312815,67768.0,67767.0,0.001646]
[1730044634786,0.65586157,67768.0,67767.0,0.001646]
[1730044635652,0.65786157,67768.0,67767.0,0.001646]
[1730044636070,0.52512815,67768.0,67767.0,0.001646]
[1730044636287,0.52312815,67768.0,67767.0,0.001646]
[1730044636710,0.65584228,67768.0,67767.0,0.001646]
[1730044636932,0.54983719,67768.0,67767.0,0.001646]
[1730044637155,0.54472412,67768.0,67767.0,0.183246]
[1730044637383,0.54983826,67768.0,67767.0,0.183246]
[1730044637599,0.41200892,67768.0,67767.0,0.183246]
[1730044637817,0.41712306,67768.0,67767.0,0.183246]
[1730044638056,0.41200892,67768.0,67767.0,0.183246]
[1730044638292,0.41712306,67768.0,67767.0,0.183246]
[1730044638540,0.41200892,67768.0,67767.0,0.183246]
[1730044638755,0.41712306,67768.0,67767.0,0.183246]
[1730044639190,0.41912306,67768.0,67767.0,0.183246]
[1730044639646,0.55183826,67768.0,67767.0,0.183246]
[1730044642552,0.41912306,67768.0,67767.0,0.183246]
[1730044643197,0.41912306,67768.0,67767.0,0.001646]
[1730044644246,0.56962687,67768.0,67767.0,0.001646]
[1730044645341,0.41912306,67768.0,67767.0,0.001646]
[1730044645567,0.59262306,67768.0,67767.0,0.001646]
[1730044645794,0.56642766,67768.0,67767.0,0.001646]
[1730044646021,0.41712306,67768.0,67767.0,0.001646]
[1730044650524,0.41912306,67768.0,67767.0,0.001646]
[1730044651643,0.56962687,67768.0,67767.0,0.001646]
[1730044653802,0.56762687,67768.0,67767.0,0.001646]
[1730044654875,0.56962687,67768.0,67767.0,0.001646]
[1730044655554,0.56762687,67768.0,67767.0,0.001646]
[1730044655765,0.41712306,67768.0,67767.0,0.001646]
[1730044656681,0.41200892,67768.0,67767.0,0.001646]
[1730044656898,0.41200892,67768.0,67767.0,0.100946]
[1730044657109,0.41712306,67768.0,67767.0,0.100946]
[1730044657773,0.80887153,67768.0,67767.0,0.100946]
[1730044659799,0.80375739,67768.0,67767.0,0.100946]
[1730044660924,0.80887153,67768.0,67767.0,0.100946]
[1730044661139,0.80375739,67768.0,67767.0,0.100946]
[1730044661389,0.93652613,67768.0,67767.0,0.100946]
[1730044662868,0.93652866,67768.0,67767.0,0.100946]
[1730044663306,0.93652866,67768.0,67767.0,0.183446]
[1730044663722,0.54478019,67768.0,67767.0,0.183446]
[1730044670643,0.41200892,67768.0,67767.0,0.183446]
[1730044671062,0.5448237,67768.0,67767.0,0.183446]
[1730044671958,0.41200892,67768.0,67767.0,0.18227665]
[1730044672767,0.54481898,67768.0,67767.0,0.18227665]
[1730044674142,0.41200892,67768.0,67767.0,0.18227665]
[1730044677597,0.41400892,67768.0,67767.0,0.18227665]
[1730044679359,0.41200892,67768.0,67767.0,0.18227665]
[1730044680252,0.5448092,67768.0,67767.0,0.18227665]
[1730044680496,0.41200892,67768.0,67767.0,0.09977665]
[1730044685554,0.54480664,67768.0,67767.0,0.09977665]
[1730044685789,0.41200892,67768.0,67767.0,0.09977665]
[1730044690396,0.54483236,67768.0,67767.0,0.09977665]
[1730044692761,0.41200892,67768.0,67767.0,0.09977665]
[1730044695359,0.41200892,67768.0,67767.0,0.18326251]
[1730044695360,0.30700892,67768.0,67767.0,0.18326251]
[1730044695599,0.00303711,67768.0,67767.0,0.33839497]
[1730044695848,0.00303711,67768.0,67767.0,0.33544371]
[1730044696058,0.00303711,67768.0,67767.0,0.37884943]
[1730044696240,0.00303711,67768.0,67767.0,0.38991401]
[1730044696495,0.00303711,67768.0,67767.0,0.37884943]
[1730044696942,0.000823,67768.0,67767.0,0.37884943]
[1730044697837,0.000823,67768.0,67767.0,0.36684526]
[1730044698046,0.000823,67768.0,67767.0,0.37884873]
[1730044699520,0.000823,67768.0,67767.0,0.37146198]
[1730044699708,0.000823,67768.0,67767.0,0.37884871]
[1730044700072,0.000823,67768.0,67767.0,0.37146198]
[1730044701500,0.000823,67768.0,67767.0,0.37141964]
[1730044704887,0.000823,67768.0,67767.0,0.37880611]
[1730044705980,0.000823,67768.0,67767.0,0.37880579]
[1730044706641,0.000823,67768.0,67767.0,0.37141941]
[1730044709352,0.000823,67768.0,67767.0,0.3788056]
[1730044711550,0.000823,67768.0,67767.0,0.3888056]
[1730044714182,0.000823,67768.0,67767.0,0.38880531]
[1730044715999,0.000823,67768.0,67767.0,0.38380531]
[1730044716640,0.000823,67768.0,67767.0,0.37880531]
[1730044716965,0.000823,67768.0,67767.0,0.82149531]
[1730044717538,0.000823,67768.0,67767.0,0.83252207]
[1730044717908,0.000823,67768.0,67767.0,0.82149534]
[1730044718308,0.000823,67768.0,67767.0,0.80949292]
[1730044718516,0.000823,67768.0,67767.0,0.83252228]
[1730044719466,0.000823,67768.0,67767.0,0.84354919]
[1730044721456,0.000823,67768.0,67767.0,0.85278194]
[1730044722008,0.000823,67768.0,67767.0,0.83154677]
[1730044722244,0.000823,67768.0,67767.0,0.85279621]
[1730044724195,0.000823,67768.0,67767.0,0.84176927]
[1730044725567,0.000823,67768.0,67767.0,0.85946681]
[1730044725794,0.000823,67768.0,67767.0,0.83823149]
[1730044726021,0.000823,67768.0,67767.0,0.84842598]
[1730044726467,0.000823,67768.0,67767.0,0.85948693]
[1730044726670,0.000823,67768.0,67767.0,0.8417894]
[1730044727081,0.000823,67768.0,67767.0,0.85948839]
[1730044729698,0.000823,67768.0,67767.0,0.80949292]
[1730044729947,0.000823,67768.0,67767.0,0.85949288]
[1730044730190,0.000823,67768.0,67767.0,0.83072842]
[1730044730426,0.000823,67768.0,67767.0,0.84842979]
[1730044731075,0.000823,67768.0,67767.0,0.85949314]
[1730044732851,0.000823,67768.0,67767.0,0.86149314]
[1730044733669,0.000823,67768.0,67767.0,0.85423195]
[1730044733858,0.000823,67768.0,67767.0,0.8836295]
[1730044734171,0.000823,67768.0,67767.0,0.8816295]
[1730044737602,0.000823,67768.0,67767.0,0.84179269]
[1730044737824,0.000823,67768.0,67767.0,0.88162853]
[1730044740964,0.000823,67768.0,67767.0,0.85949756]
[1730044741145,0.000823,67768.0,67767.0,1.08909368]
[1730044741798,0.000823,67768.0,67767.0,1.08682168]
[1730044742243,0.000823,67768.0,67767.0,1.02055145]
[1730044743548,0.000823,67768.0,67767.0,1.0869269]
[1730044744212,0.000823,67768.0,67767.0,1.05815759]
[1730044744448,0.000823,67768.0,67767.0,1.0907304]
[1730044744911,0.000823,67768.0,67767.0,0.92740388]
[1730044745164,0.000823,67768.0,67767.0,0.84880388]
[1730044745392,0.000823,67768.0,67767.0,0.84500083]
[1730044747606,0.000823,67768.0,67767.0,0.84500103]
[1730044748082,0.000823,67768.0,67767.0,0.96941784]
[1730044748319,0.000823,67768.0,67767.0,1.00835695]
[1730044748761,0.000823,67768.0,67767.0,0.84500097]
[1730044749219,0.000823,67768.0,67767.0,1.00835975]
[1730044749474,0.000823,67768.0,67767.0,0.84500097]
[1730044749689,0.000823,67768.0,67767.0,1.00837337]
[1730044750761,0.000823,67768.0,67767.0,0.94199772]
[1730044751213,0.000823,67768.0,67767.0,0.94364172]
[1730044751430,0.000823,67768.0,67767.0,0.84617941]
[1730044751881,0.000823,67768.0,67767.0,0.81740994]
[1730044752107,0.000823,67768.0,67767.0,0.83511329]
[1730044752331,0.000823,67768.0,67767.0,0.82847455]
[1730044752557,0.000823,67768.0,67767.0,0.83953911]
[1730044752814,0.000823,67768.0,67767.0,0.74255997]
[1730044753040,0.000823,67768.0,67767.0,0.76026327]
[1730044753976,0.000823,67768.0,67767.0,0.76026351]
[1730044754197,0.000823,67768.0,67767.0,0.69387025]
[1730044754425,0.000823,67768.0,67767.0,0.68280566]
[1730044754661,0.000823,67768.0,67767.0,0.91257364]
[1730044754874,0.000823,67768.0,67767.0,0.68280566]
[1730044755821,0.000823,67768.0,67767.0,0.63280261]
[1730044756050,0.000823,67768.0,67767.0,0.6651027]
[1730044756279,0.000823,67768.0,67767.0,0.68280607]
[1730044756502,0.000823,67768.0,67767.0,0.91257221]
[1730044757201,0.000823,67768.0,67767.0,0.912572]
[1730044758754,0.000823,67768.0,67767.0,0.91257537]
[1730044759750,0.000823,67768.0,67767.0,0.91257514]
[1730044761903,0.000823,67768.0,67767.0,0.9125775]
[1730044762814,0.000823,67768.0,67767.0,0.93470751]
[1730044763050,0.000823,67768.0,67767.0,1.12972779]
[1730044763293,0.000823,67768.0,67767.0,1.0089164]
[1730044763522,0.000823,67768.0,67767.0,1.04501369]
[1730044763753,0.000823,67768.0,67767.0,1.01908444]
[1730044763993,0.000823,67768.0,67767.0,1.08547206]
[1730044764448,0.000823,67768.0,67767.0,1.10759513]
[1730044765387,0.000823,67768.0,67767.0,1.12972415]
[1730044766110,0.000823,67768.0,67767.0,1.10759513]
[1730044766341,0.000823,67768.0,67767.0,1.12972466]
[1730044766594,0.000823,67768.0,67767.0,1.10759513]
[1730044767271,0.000823,67768.0,67767.0,1.10759486]
[1730044767507,0.000823,67768.0,67767.0,1.10759786]
[1730044767926,0.000823,67768.0,67767.0,1.12972779]
[1730044768170,0.000823,67768.0,67767.0,1.10759786]
[1730044768397,0.000823,67768.0,67767.0,1.12972799]
[1730044768813,0.000823,67768.0,67767.0,0.82493988]
[1730044769014,0.000823,67768.0,67767.0,0.84617478]
[1730044769293,0.000823,67768.0,67767.0,0.91256071]
[1730044769496,0.000823,67768.0,67767.0,0.91256551]
[1730044771205,0.000823,67768.0,67767.0,0.90150285]
[1730044771407,0.000823,67768.0,67767.0,0.91256856]
[1730044772663,0.000823,67768.0,67767.0,0.84618209]
[1730044773313,0.000823,67768.0,67767.0,0.68280914]
[1730044774439,0.000823,67768.0,67767.0,1.14291448]
[1730044774646,0.000823,67768.0,67767.0,1.03227036]
[1730044774876,0.000823,67768.0,67767.0,1.02834804]
[1730044775132,0.000823,67768.0,67767.0,1.07170984]
[1730044775352,0.000823,67768.0,67767.0,1.08277343]
[1730044775813,0.000823,67768.0,67767.0,1.10047518]
[1730044776018,0.000823,67768.0,67767.0,1.10039447]
[1730044776491,0.000823,67768.0,67767.0,1.34889828]
[1730044777179,0.000823,67768.0,67767.0,1.35089828]
[1730044777832,0.000823,67768.0,67767.0,1.34889828]
[1730044778487,0.000823,67768.0,67767.0,1.35089828]
[1730044778944,0.22123955,67778.0,67777.0,0.27742786]
[1730044779154,0.22123955,67778.0,67777.0,0.32742781]
[1730044779369,0.18973389,67786.0,67784.0,0.15741286]
[1730044779603,0.18973389,67786.0,67784.0,0.18502908]
[1730044779813,0.18973389,67786.0,67784.0,0.1927789]
[1730044783269,0.18973389,67786.0,67784.0,0.3668789]
[1730044783520,0.18973389,67786.0,67784.0,0.37426386]
[1730044783731,0.18973389,67786.0,67784.0,0.81684386]
[1730044786001,0.147508,67793.0,67784.0,0.81684386]
[1730044787091,0.147508,67793.0,67784.0,0.73974386]
[1730044789019,0.147511,67792.0,67784.0,0.73974386]
[1730044789232,0.147511,67792.0,67784.0,0.64274386]
[1730044789233,0.1791,67791.0,67784.0,0.64274386]
[1730044789453,0.1791,67791.0,67784.0,0.6353589]
[1730044789674,0.326612,67791.0,67784.0,0.6353589]
[1730044789884,0.326612,67791.0,67784.0,0.63074268]
[1730044790114,0.1791,67791.0,67784.0,0.6353582]
[1730044791017,0.326613,67791.0,67784.0,0.6353582]
[1730044791248,0.147514,67790.0,67784.0,0.6427429]
[1730044791467,0.326612,67791.0,67784.0,0.6427429]
[1730044791690,0.147515,67790.0,67784.0,0.6427429]
[1730044791981,0.1791,67791.0,67784.0,0.6353582]
[1730044792191,0.147514,67790.0,67784.0,0.6353582]
[1730044792436,0.1791,67791.0,67784.0,0.6353582]
[1730044793082,0.147516,67789.0,67784.0,0.6353582]
[1730044793304,0.1791,67791.0,67784.0,0.6353582]
[1730044793522,0.147516,67790.0,67784.0,0.6353582]
[1730044793767,0.1791,67791.0,67784.0,0.63074268]
[1730044793965,0.1791,67791.0,67784.0,0.63535824]
[1730044794183,0.1791,67791.0,67784.0,0.61235824]
[1730044794403,0.147517,67789.0,67784.0,0.61235824]
[1730044794619,0.1791,67791.0,67784.0,0.61235824]
[1730044794837,0.326613,67791.0,67784.0,0.61235824]
[1730044795073,0.105,67801.0,67784.0,0.79095824]
[1730044795074,0.17514897,67797.0,67784.0,0.79095824]
[1730044795251,0.17514897,67797.0,67784.0,0.82134298]
[1730044795252,0.22159355,67793.0,67784.0,0.82134298]
[1730044796374,0.22159355,67793.0,67784.0,0.8323789]
[1730044797434,0.22159355,67793.0,67784.0,0.8203786]
[1730044797641,0.22159355,67793.0,67784.0,0.83237857]
[1730044798746,0.22159355,67793.0,67784.0,0.83237846]
[1730044799151,0.22159355,67793.0,67784.0,0.83237817]
[1730044800052,0.22159355,67793.0,67784.0,0.83237847]
[1730044801250,0.22159355,67793.0,67784.0,0.82134234]
[1730044801252,0.22159355,67793.0,67784.0,0.8323795]
[1730044803386,0.22159355,67793.0,67784.0,0.84161004]
[1730044803797,0.22159355,67793.0,67784.0,0.8323795]
[1730044805253,0.076023,67804.0,67803.0,0.00488586]
[1730044805465,0.000823,67804.0,67803.0,0.00488586]
[1730044805681,0.000823,67804.0,67803.0,0.15237186]
[1730044806757,0.000823,67804.0,67803.0,0.17832115]
[1730044807024,0.000823,67804.0,67803.0,0.18332115]
[1730044807455,0.000823,67804.0,67803.0,0.62744629]
[1730044807870,0.000823,67804.0,67803.0,0.81707369]
[1730044808084,0.000823,67804.0,67803.0,0.8244561]
[1730044808308,0.000823,67804.0,67803.0,0.9344561]
[1730044808726,0.000823,67804.0,67803.0,1.0082561]
[1730044809413,0.000823,67804.0,67803.0,1.0102561]
[1730044809638,0.000823,67804.0,67803.0,1.0082561]
[1730044810328,0.000823,67804.0,67803.0,1.0102561]
[1730044810788,0.000823,67804.0,67803.0,1.0082561]
[1730044811301,0.000823,67804.0,67803.0,1.00087369]
[1730044811529,0.000823,67804.0,67803.0,1.00287369]
[1730044811768,0.000823,67804.0,67803.0,1.0082561]
[1730044812256,0.000823,67804.0,67803.0,1.00087369]
[1730044812480,0.000823,67804.0,67803.0,1.00287369]
[1730044812932,0.000823,67804.0,67803.0,1.1533775]
[1730044813154,0.000823,67804.0,67803.0,1.1513775]
[1730044814124,0.000823,67804.0,67803.0,1.1403501]
[1730044814356,0.000823,67804.0,67803.0,1.15134033]
[1730044815532,0.000823,67804.0,67803.0,1.15133488]
[1730044817861,0.000823,67804.0,67803.0,1.15953626]
[1730044818590,0.000823,67804.0,67803.0,1.18910626]
[1730044819168,0.000823,67804.0,67803.0,1.19110626]
[1730044819374,0.000823,67804.0,67803.0,1.1891052]
[1730044819562,0.000823,67804.0,67803.0,1.18909982]
[1730044821619,0.000823,67804.0,67803.0,1.19648121]
[1730044822004,0.000823,67804.0,67803.0,1.19109982]
[1730044822229,0.000823,67817.0,67816.0,0.15734286]
[1730044822696,0.000823,67817.0,67816.0,0.18329158]
[1730044822940,0.000823,67817.0,67816.0,0.63088468]
[1730044824788,0.000823,67817.0,67816.0,0.6354978]
[1730044825702,0.000823,67817.0,67816.0,0.65647777]
[1730044825917,0.000823,67817.0,67816.0,0.7633587]
[1730044826385,0.000823,67817.0,67816.0,0.75136465]
[1730044826630,0.000823,67817.0,67816.0,0.87462406]
[1730044826873,0.000823,67817.0,67816.0,0.87923647]
[1730044828611,0.22159355,67828.0,67827.0,0.00488586]
[1730044828824,0.22159355,67828.0,67827.0,0.21450127]
[1730044829037,0.21420925,67835.0,67834.0,0.18187386]
[1730044829487,0.21420925,67835.0,67834.0,0.19000925]
[1730044830411,0.0800599,67835.0,67834.0,0.19000925]
[1730044831057,0.000835,67836.0,67835.0,0.20487186]
[1730044831543,0.000835,67836.0,67835.0,0.21300493]
[1730044831983,0.000835,67836.0,67835.0,0.2159528]
[1730044832206,0.000835,67836.0,67835.0,0.6582028]
[1730044832430,0.000835,67836.0,67835.0,0.65986691]
[1730044832858,0.000835,67836.0,67835.0,0.66486691]
[1730044833735,0.000835,67836.0,67835.0,0.87927966]
[1730044834009,0.000835,67836.0,67835.0,0.88287705]
[1730044834236,0.000835,67836.0,67835.0,0.66787362]
[1730044834473,0.000835,67836.0,67835.0,0.66287362]
[1730044834690,0.000835,67836.0,67835.0,0.65763429]
[1730044834903,0.000835,67836.0,67835.0,0.64665796]
[1730044836197,0.000835,67836.0,67835.0,0.66686266]
[1730044836422,0.000835,67836.0,67835.0,0.66686471]
[1730044837718,0.000835,67836.0,67835.0,0.65026292]
[1730044837924,0.000835,67836.0,67835.0,0.64204724]
[1730044838131,0.000835,67836.0,67835.0,0.66686713]
[1730044840458,0.000835,67836.0,67835.0,0.66235451]
[1730044841627,0.000835,67836.0,67835.0,0.6301558]
[1730044841854,0.000835,67836.0,67835.0,0.662353]
[1730044842060,0.000835,67836.0,67835.0,0.66235293]
[1730044842298,0.000835,67836.0,67835.0,0.67333569]
[1730044842533,0.000835,67836.0,67835.0,0.67333551]
[1730044843666,0.000823,67841.0,67840.0,0.15729086]
[1730044843882,0.000823,67841.0,67840.0,0.17222922]
[1730044844090,0.000823,67841.0,67840.0,0.17968644]
[1730044845436,0.000823,67841.0,67840.0,0.16769588]
[1730044845650,0.000823,67841.0,67840.0,0.18890938]
[1730044846108,0.000823,67841.0,67840.0,0.17968612]
[1730044846331,0.000823,67841.0,67840.0,0.18890939]
[1730044846557,0.000823,67841.0,67840.0,0.17968612]
[1730044847251,0.000823,67841.0,67840.0,0.18890938]
[1730044848123,0.000823,67841.0,67840.0,0.17968612]
[1730044848788,0.000823,67841.0,67840.0,0.18890952]
[1730044848998,0.000823,67841.0,67840.0,0.17968612]
[1730044849268,0.000823,67841.0,67840.0,0.18890985]
[1730044849490,0.000823,67841.0,67840.0,0.1839098]
[1730044849707,0.000823,67841.0,67840.0,0.1889098]
[1730044849938,0.000823,67841.0,67840.0,0.19695259]
[1730044850627,0.000823,67841.0,67840.0,0.17173858]
[1730044851967,0.000823,67841.0,67840.0,0.17673858]
[1730044853083,0.000823,67841.0,67840.0,0.17173858]
[1730044853317,0.000823,67841.0,67840.0,0.18096252]
[1730044853535,0.000823,67841.0,67840.0,0.17673885]
[1730044853763,0.000823,67841.0,67840.0,0.20130885]
[1730044854439,0.000823,67841.0,67840.0,0.22154377]
[1730044854881,0.000823,67841.0,67840.0,0.20130885]
[1730044855149,0.000823,67841.0,67840.0,0.05390385]
[1730044855364,0.47772981,67841.0,67840.0,0.04163905]
[1730044855631,0.47772981,67841.0,67840.0,0.04652491]
[1730044855632,0.48272981,67841.0,67840.0,0.04652491]
[1730044855861,0.48272981,67841.0,67840.0,0.04191308]
[1730044856763,0.47772981,67841.0,67840.0,0.04191308]
[1730044857248,0.48272981,67841.0,67840.0,0.04191308]
[1730044857485,0.33032681,67841.0,67840.0,0.04191308]
[1730044857706,0.33032681,67841.0,67840.0,0.03445586]
[1730044857911,0.33032681,67841.0,67840.0,0.041961]
[1730044858800,0.47772981,67841.0,67840.0,0.041961]
[1730044859287,0.33032681,67841.0,67840.0,0.041961]
[1730044859981,0.33032681,67841.0,67840.0,0.03707514]
[1730044860210,0.33032681,67841.0,67840.0,0.041961]
[1730044860647,0.47772981,67841.0,67840.0,0.041961]
[1730044862022,0.33032681,67841.0,67840.0,0.041961]
[1730044862519,0.33032681,67841.0,67840.0,0.189366]
[1730044862520,0.15132681,67841.0,67840.0,0.189366]
[1730044862978,0.15132681,67841.0,67840.0,0.19397814]
[1730044863463,0.000823,67841.0,67840.0,0.189366]
[1730044863707,0.000823,67841.0,67840.0,0.04490884]
[1730044863949,0.000823,67841.0,67840.0,0.193978]
[1730044864443,0.000823,67841.0,67840.0,0.19692579]
[1730044865114,0.000823,67841.0,67840.0,0.193978]
[1730044865339,0.000823,67841.0,67840.0,0.20135683]
[1730044867029,0.000823,67841.0,67840.0,0.193978]
[1730044867260,0.000823,67841.0,67840.0,0.20135677]
[1730044867485,0.000823,67841.0,67840.0,0.20135653]
[1730044867708,0.000823,67841.0,67840.0,0.19397774]
[1730044868652,0.46732981,67841.0,67840.0,0.01211688]
[1730044868870,0.46732981,67841.0,67840.0,0.00750514]
[1730044869290,0.147407,67839.0,67838.0,0.00488586]
[1730044869501,0.29791081,67839.0,67838.0,0.00488586]
[1730044869736,0.44532181,67839.0,67838.0,0.00488586]
[1730044869960,0.59272881,67839.0,67838.0,0.00488586]
[1730044870415,0.44532181,67839.0,67838.0,0.00488586]
[1730044870668,0.59272881,67839.0,67838.0,0.00488586]
[1730044871761,0.15050381,67839.0,67838.0,0.00488586]
[1730044872184,0.15050381,67839.0,67838.0,0.01239832]
[1730044872397,0.15050381,67839.0,67838.0,0.00488586]
[1730044872637,0.15050381,67839.0,67838.0,0.01239832]
[1730044873081,0.29791081,67839.0,67838.0,0.01239832]
[1730044873322,0.15050381,67839.0,67838.0,0.01239832]
[1730044874440,0.29791081,67839.0,67838.0,0.01239832]
[1730044874915,0.15050381,67839.0,67838.0,0.01239832]
[1730044875121,0.29791081,67839.0,67838.0,0.01239832]
[1730044875268,0.15050381,67839.0,67838.0,0.01239832]
[1730044875482,0.29791081,67839.0,67838.0,0.01239832]
[1730044878607,0.29791081,67839.0,67838.0,0.04196832]
[1730044879603,0.57821081,67839.0,67838.0,0.00751246]
[1730044879808,0.152412,67837.0,67836.0,0.001646]
[1730044880046,0.57821581,67837.0,67836.0,0.001646]
[1730044880485,0.64445892,67837.0,67836.0,0.001646]
[1730044880695,0.64445892,67837.0,67836.0,0.031216]
[1730044880696,0.66657606,67837.0,67836.0,0.031216]
[1730044880944,0.66657606,67837.0,67836.0,0.001646]
[1730044881631,0.57821581,67837.0,67836.0,0.001646]
[1730044881829,0.57821581,67837.0,67836.0,0.00970174]
[1730044882039,0.64444692,67837.0,67836.0,0.00970174]
[1730044882255,0.57821581,67837.0,67836.0,0.00970174]
[1730044883311,0.57821581,67837.0,67836.0,0.01474262]
[1730044883521,0.60330704,67837.0,67836.0,0.01474262]
[1730044883770,0.60842118,67837.0,67836.0,0.00668688]
[1730044884005,0.60842118,67837.0,67836.0,0.001646]
[1730044884657,0.85842118,67837.0,67836.0,0.001646]
[1730044885680,0.85642118,67837.0,67836.0,0.001646]
[1730044887704,0.85842118,67837.0,67836.0,0.001646]
[1730044888569,0.83532995,67837.0,67836.0,0.001646]
[1730044889017,0.83332995,67837.0,67836.0,0.001646]
[1730044889347,0.83589393,67837.0,67836.0,0.001646]
[1730044889768,0.83332995,67837.0,67836.0,0.001646]
[1730044890641,0.98383376,67837.0,67836.0,0.001646]
[1730044891265,0.83332995,67837.0,67836.0,0.001646]
[1730044893194,0.83532995,67837.0,67836.0,0.001646]
[1730044893585,0.83332995,67837.0,67836.0,0.001646]
[1730044893778,0.83532995,67837.0,67836.0,0.001646]
[1730044894152,0.84122995,67837.0,67836.0,0.001646]
[1730044894369,0.99173376,67837.0,67836.0,0.001646]
[1730044895830,0.98973376,67837.0,67836.0,0.001646]
[1730044896484,0.83922995,67837.0,67836.0,0.001646]
[1730044897316,0.84122995,67837.0,67836.0,0.001646]
[1730044897561,0.84122995,67837.0,67834.0,0.001646]
[1730044897562,0.43153014,67835.0,67834.0,1e-06]
[1730044897820,0.69376395,67835.0,67834.0,1e-06]
[1730044898053,0.82599686,67835.0,67834.0,1e-06]
[1730044898281,0.69376395,67835.0,67834.0,1e-06]
[1730044898751,0.84426776,67835.0,67834.0,1e-06]
[1730044899871,0.84226776,67835.0,67834.0,1e-06]
[1730044900329,0.84426776,67835.0,67834.0,1e-06]
[1730044900514,0.84226776,67835.0,67834.0,1e-06]
[1730044903636,0.97627803,67835.0,67834.0,1e-06]
[1730044903849,0.255,67819.0,67818.0,0.22159355]
[1730044904059,0.65295481,67819.0,67818.0,0.2351298]
[1730044904274,0.152466,67812.0,67808.0,0.00488586]
[1730044904492,0.30296981,67812.0,67808.0,0.00488586]
[1730044904711,0.14968579,67809.0,67808.0,0.00488586]
[1730044904921,0.3001896,67809.0,67808.0,0.00488586]
[1730044905560,0.147479,67806.0,67803.0,0.0738]
[1730044905789,0.29798281,67806.0,67803.0,0.0738]
[1730044906010,0.147483,67804.0,67803.0,0.0738]
[1730044906292,0.29798681,67804.0,67803.0,0.0738]
[1730044909315,0.40298681,67804.0,67803.0,0.0738]
[1730044909767,0.40498681,67804.0,67803.0,0.0738]
[1730044910228,0.40298681,67804.0,67803.0,0.0738]
[1730044911321,0.82990095,67804.0,67803.0,0.0738]
[1730044913093,0.82790095,67804.0,67803.0,0.0738]
[1730044913510,0.57790095,67804.0,67803.0,0.0738]
[1730044913719,0.48930095,67804.0,67803.0,0.10337]
[1730044913935,0.48930095,67804.0,67803.0,0.0738]
[1730044916391,0.48930095,67804.0,67803.0,0.075446]
[1730044916555,0.48730095,67804.0,67803.0,0.075446]
[1730044916918,0.48930095,67804.0,67803.0,0.075446]
[1730044917146,0.40810095,67804.0,67803.0,0.256446]
[1730044917348,0.40810095,67804.0,67803.0,0.075446]
[1730044917760,0.43587322,67804.0,67803.0,0.075446]
[1730044918231,0.40298681,67804.0,67803.0,0.075446]
[1730044918564,0.39798681,67804.0,67803.0,0.075446]
[1730044920286,0.39798681,67804.0,67803.0,0.256446]
[1730044923917,0.39798681,67804.0,67803.0,0.286016]
[1730044926625,0.29798681,67804.0,67803.0,0.286016]
[1730044927078,0.29798681,67804.0,67803.0,0.29716223]
[1730044928877,0.29798681,67804.0,67803.0,0.30204809]
[1730044939409,0.02,67805.0,67804.0,0.35633886]
[1730044939638,0.17050381,67805.0,67804.0,0.35633886]
[1730044939873,0.17050381,67805.0,67804.0,0.21995041]
[1730044940553,0.02,67805.0,67804.0,0.36743341]
[1730044942767,0.167481,67805.0,67804.0,0.21995041]
[1730044942981,0.31798481,67805.0,67804.0,0.21995041]
[1730044945505,0.31798481,67805.0,67804.0,0.20885586]
[1730044946351,0.31798481,67805.0,67804.0,0.21998145]
[1730044946812,0.17050381,67805.0,67804.0,0.21998145]
[1730044947016,0.31798481,67805.0,67804.0,0.21998145]
[1730044947439,0.02,67805.0,67804.0,0.21998145]
[1730044948556,0.02,67805.0,67804.0,0.21680271]
[1730044949825,0.02,67805.0,67804.0,0.36428571]
[1730044950254,0.02,67805.0,67804.0,0.36890022]
[1730044951641,0.14968579,67809.0,67808.0,0.00488586]
[1730044951879,0.00221279,67809.0,67808.0,0.01415428]
[1730044952093,0.14968579,67809.0,67808.0,0.01415428]
[1730044957061,0.00221279,67809.0,67808.0,0.01415428]
[1730044957267,0.14968579,67809.0,67808.0,0.01415428]
[1730044957922,0.00221279,67809.0,67808.0,0.01415428]
[1730044958509,0.14968579,67809.0,67808.0,0.01415428]
[1730044958725,0.14968579,67809.0,67808.0,0.04372428]
[1730044960510,0.18221746,68108.0,67808.0,0.04372428]
[1730044960511,0.04410549,67824.0,67820.0,0.06245586]
[1730044960734,0.059008,67827.0,67826.0,0.15732186]
[1730044960946,0.059008,67827.0,67826.0,0.24143593]
[1730044961164,0.148236,67837.0,67833.0,0.18030586]
[1730044961165,0.22241655,67834.0,67833.0,0.18030586]
[1730044961403,0.22241655,67834.0,67833.0,0.24641993]
[1730044961615,0.000823,67834.0,67833.0,0.28203608]
[1730044962036,0.000823,67834.0,67833.0,0.31003608]
[1730044962278,0.000823,67834.0,67833.0,0.40322201]
[1730044962491,0.000823,67834.0,67833.0,0.409834]
[1730044962737,0.000823,67834.0,67833.0,0.40404261]
[1730044963185,0.000823,67834.0,67833.0,0.41503902]
[1730044963630,0.000823,67834.0,67833.0,0.37447261]
[1730044964830,0.000823,67834.0,67833.0,0.37647261]
[1730044965043,0.000823,67834.0,67833.0,0.37447261]
[1730044965482,0.000823,67834.0,67833.0,0.37647261]
[1730044965697,0.000823,67834.0,67833.0,0.62697642]
[1730044965967,0.000823,67834.0,67833.0,0.62697603]
[1730044966186,0.000823,67834.0,67833.0,0.63794245]
[1730044966653,0.000823,67834.0,67833.0,0.63594245]
[1730044968420,0.000823,67834.0,67833.0,0.62497603]
[1730044968629,0.000823,67834.0,67833.0,0.62497598]
[1730044969791,0.000823,67834.0,67833.0,0.47447226]
[1730044970253,0.000823,67834.0,67833.0,0.37447226]
[1730044970918,0.000823,67834.0,67833.0,0.52497607]
[1730044971147,0.000823,67834.0,67833.0,0.5323547]
[1730044972258,0.000823,67834.0,67833.0,0.38185089]
[1730044973812,0.000823,67837.0,67836.0,0.19686986]
[1730044974031,0.000823,67837.0,67836.0,0.2244815]
[1730044974256,0.000823,67837.0,67836.0,0.23160447]
[1730044975204,0.000823,67837.0,67836.0,0.22699283]
[1730044976697,0.000823,67837.0,67836.0,0.23160465]
[1730044976939,0.000823,67837.0,67836.0,0.22699283]
[1730044977168,0.000823,67837.0,67836.0,0.23160464]